fUSD/lending_fUSD_20260623
["ID","MTS","AMOUNT","RATE_DAILY","PERIOD"]
[426092395,1782144646000,-500.0,0.00027002,2]
[426092394,1782144646000,-500.0,0.00027002,2]
[426092386,1782144646000,-500.0,0.00027002,2]
[426092380,1782144646000,-500.0,0.00027002,2]
[426092382,1782144646000,-500.0,0.00027002,2]
[426092379,1782144646000,-216.35787048,0.00027,3]
[426092387,1782144646000,-500.0,0.00027002,2]
[426092451,1782144647000,-260.4103811,0.00027221,2]
[426092460,1782144647000,-14701.54489088,0.00027333,2]
[426092455,1782144647000,-785.0,0.00027254,2]
[426092459,1782144647000,-319.0,0.00027307,2]
[426092463,1782144647000,-8294.5745801,0.0002739,2]
[426092467,1782144647000,-453.35036438,0.00027397,2]
[426092466,1782144647000,-518.21,0.00027397,2]
[426092465,1782144647000,-700.35,0.00027397,2]
[426092456,1782144647000,-2121.76,0.00027254,7]
[426092458,1782144647000,-328680.61638556,0.000273,2]
[426092457,1782144647000,-152.0,0.00027273,5]
[426092461,1782144647000,-1293.7451,0.0002736,2]
[426092477,1782144647000,-1334.643203,0.00027397,2]
[426092464,1782144647000,-1715.21,0.00027397,2]
[426092469,1782144647000,-2287.73958299,0.00027397,2]
[426092472,1782144647000,-3095.14,0.00027397,2]
[426092470,1782144647000,-1500.0,0.00027397,2]
[426092479,1782144647000,-1334.643203,0.00027397,2]
[426092471,1782144647000,-671.51279974,0.00027397,2]
[426092468,1782144647000,-3000.0,0.00027397,2]
[426092475,1782144647000,-300.0,0.00027397,2]
[426092473,1782144647000,-530.41,0.00027397,2]
[426092476,1782144647000,-1334.643203,0.00027397,2]
[426092474,1782144647000,-154.046654,0.00027397,2]
[426092478,1782144647000,-1334.643203,0.00027397,2]
[426092452,1782144647000,-391.81075028,0.00027221,2]
[426092462,1782144647000,-4198.42287072,0.0002739,2]
[426092453,1782144647000,-242.15909246,0.00027221,2]
[426092430,1782144647000,-200.0,0.00027002,2]
[426092449,1782144647000,-50638.63297689,0.000272,2]
[426092480,1782144647000,-1334.643203,0.00027397,2]
[426092429,1782144647000,-200.0,0.00027002,2]
[426092424,1782144647000,-200.0,0.00027002,2]
[426092423,1782144647000,-200.0,0.00027002,2]
[426092428,1782144647000,-200.0,0.00027002,2]
[426092425,1782144647000,-200.0,0.00027002,2]
[426092426,1782144647000,-200.0,0.00027002,2]
[426092427,1782144647000,-200.0,0.00027002,2]
[426092431,1782144647000,-200.0,0.00027002,2]
[426092437,1782144647000,-14701.54489088,0.00027111,2]
[426092434,1782144647000,-182.0,0.00027002,2]
[426092432,1782144647000,-200.0,0.00027002,2]
[426092436,1782144647000,-477.170604,0.00027087,2]
[426092433,1782144647000,-200.0,0.00027002,2]
[426092435,1782144647000,-4528.1083,0.00027073,2]
[426092438,1782144647000,-400.5977346,0.00027114,2]
[426092443,1782144647000,-1360.0,0.00027168,2]
[426092440,1782144647000,-200.0,0.00027124,2]
[426092439,1782144647000,-183.45121984,0.00027124,2]
[426092441,1782144647000,-2991.49051684,0.00027124,2]
[426092442,1782144647000,-1276.0,0.00027168,2]
[426092445,1782144647000,-1229.0,0.00027178,2]
[426092444,1782144647000,-383.0,0.00027168,2]
[426092447,1782144647000,-6082.0,0.00027178,2]
[426092448,1782144647000,-558.41,0.000272,7]
[426092446,1782144647000,-3648.0,0.00027178,2]
[426092450,1782144647000,-815.44410182,0.00027221,2]
[426092454,1782144647000,-151.0,0.00027221,2]
[426092481,1782144647000,-1334.643203,0.00027397,2]
[426092494,1782144647000,-1334.643203,0.00027397,2]
[426092483,1782144647000,-1334.643203,0.00027397,2]
[426092526,1782144647000,-160.998423,0.00027397,2]
[426092515,1782144647000,-569.714322,0.00027397,2]
[426092518,1782144647000,-160.998423,0.00027397,2]
[426092517,1782144647000,-160.998423,0.00027397,2]
[426092523,1782144647000,-160.998423,0.00027397,2]
[426092522,1782144647000,-160.998423,0.00027397,2]
[426092519,1782144647000,-160.998423,0.00027397,2]
[426092525,1782144647000,-160.998423,0.00027397,2]
[426092485,1782144647000,-1334.643203,0.00027397,2]
[426092524,1782144647000,-160.998423,0.00027397,2]
[426092521,1782144647000,-160.998423,0.00027397,2]
[426092527,1782144647000,-160.998423,0.00027397,2]
[426092516,1782144647000,-1025.73,0.00027397,2]
[426092531,1782144647000,-160.998423,0.00027397,2]
[426092532,1782144647000,-160.998423,0.00027397,2]
[426092533,1782144647000,-160.998423,0.00027397,2]
[426092528,1782144647000,-160.998423,0.00027397,2]
[426092529,1782144647000,-160.998423,0.00027397,2]
[426092530,1782144647000,-160.998423,0.00027397,2]
[426092535,1782144647000,-160.998423,0.00027397,2]
[426092536,1782144647000,-160.998423,0.00027397,2]
[426092537,1782144647000,-980.68,0.00027397,2]
[426092539,1782144647000,-151.0,0.00027397,2]
[426092538,1782144647000,-151.0,0.00027397,2]
[426092541,1782144647000,-215.903327,0.00027397,2]
[426092540,1782144647000,-151.0,0.00027397,2]
[426092534,1782144647000,-160.998423,0.00027397,2]
[426092511,1782144647000,-569.714326,0.00027397,2]
[426092520,1782144647000,-160.998423,0.00027397,2]
[426092509,1782144647000,-569.714326,0.00027397,2]
[426092488,1782144647000,-1334.643203,0.00027397,2]
[426092490,1782144647000,-1334.643203,0.00027397,2]
[426092508,1782144647000,-569.714326,0.00027397,2]
[426092484,1782144647000,-1334.643203,0.00027397,2]
[426092491,1782144647000,-1334.643203,0.00027397,2]
[426092487,1782144647000,-1334.643203,0.00027397,2]
[426092489,1782144647000,-1334.643203,0.00027397,2]
[426092486,1782144647000,-1334.643203,0.00027397,2]
[426092493,1782144647000,-1334.643203,0.00027397,2]
[426092503,1782144647000,-569.714326,0.00027397,2]
[426092492,1782144647000,-1334.643203,0.00027397,2]
[426092497,1782144647000,-569.714326,0.00027397,2]
[426092498,1782144647000,-569.714326,0.00027397,2]
[426092482,1782144647000,-1334.643203,0.00027397,2]
[426092500,1782144647000,-569.714326,0.00027397,2]
[426092501,1782144647000,-569.714326,0.00027397,2]
[426092505,1782144647000,-569.714326,0.00027397,2]
[426092510,1782144647000,-569.714326,0.00027397,2]
[426092506,1782144647000,-569.714326,0.00027397,2]
[426092513,1782144647000,-569.714326,0.00027397,2]
[426092507,1782144647000,-569.714326,0.00027397,2]
[426092512,1782144647000,-569.714326,0.00027397,2]
[426092504,1782144647000,-569.714326,0.00027397,2]
[426092502,1782144647000,-569.714326,0.00027397,2]
[426092499,1782144647000,-569.714326,0.00027397,2]
[426092496,1782144647000,-569.714326,0.00027397,2]
[426092495,1782144647000,-1334.643199,0.00027397,2]
[426092514,1782144647000,-569.714326,0.00027397,2]
[426092577,1782144648000,-593.07289638,0.00027558,2]
[426092572,1782144648000,-358.85,0.0002755,2]
[426092569,1782144648000,-891.03,0.0002755,30]
[426092566,1782144648000,-166.376217,0.0002755,2]
[426092565,1782144648000,-285.682151,0.0002755,2]
[426092570,1782144648000,-369.05,0.0002755,2]
[426092571,1782144648000,-567.77,0.0002755,30]
[426092573,1782144648000,-1378.64,0.0002755,30]
[426092575,1782144648000,-14701.54489088,0.00027556,2]
[426092580,1782144648000,-453.34103782,0.00027558,2]
[426092586,1782144648000,-449.43943745,0.00027558,2]
[426092576,1782144648000,-234.03408794,0.00027558,2]
[426092579,1782144648000,-544.1155111,0.00027558,2]
[426092583,1782144648000,-498.60537648,0.00027558,2]
[426092584,1782144648000,-420.65992809,0.00027558,2]
[426092582,1782144648000,-400.36918089,0.00027558,2]
[426092591,1782144648000,-372.2084145,0.00027558,2]
[426092593,1782144648000,-475.37575953,0.00027558,2]
[426092588,1782144648000,-274.11425643,0.00027558,2]
[426092567,1782144648000,-567.59,0.0002755,30]
[426092578,1782144648000,-267.17961695,0.00027558,2]
[426092568,1782144648000,-1378.19,0.0002755,30]
[426092589,1782144648000,-211.39000749,0.00027558,2]
[426092574,1782144648000,-891.01,0.0002755,30]
[426092549,1782144648000,-969.24,0.000274,7]
[426092550,1782144648000,-364.68,0.000274,7]
[426092547,1782144648000,-150.0,0.00027398,2]
[426092545,1782144648000,-312.58427785,0.00027397,2]
[426092542,1782144648000,-17950.55,0.00027397,10]
[426092544,1782144648000,-156.29213893,0.00027397,2]
[426092543,1782144648000,-14958.79,0.00027397,10]
[426092548,1782144648000,-632.60655649,0.000274,120]
[426092546,1782144648000,-150.0,0.00027397,2]
[426092551,1782144648000,-150.0,0.000274,7]
[426092554,1782144648000,-350.0,0.00027444,9]
[426092555,1782144648000,-315.0,0.00027491,5]
[426092553,1782144648000,-501.0,0.00027423,9]
[426092556,1782144648000,-50000.0,0.000275,3]
[426092559,1782144648000,-200.0,0.00027521,2]
[426092558,1782144648000,-500.0,0.000275,7]
[426092557,1782144648000,-205.36281912,0.000275,2]
[426092562,1782144648000,-1184.068846,0.0002755,2]
[426092561,1782144648000,-1173.056918,0.0002755,2]
[426092560,1782144648000,-1237.224176,0.0002755,2]
[426092564,1782144648000,-511.070886,0.0002755,2]
[426092563,1782144648000,-1005.28804,0.0002755,2]
[426092590,1782144648000,-556.22626306,0.00027558,2]
[426092585,1782144648000,-526.67351473,0.00027558,2]
[426092594,1782144648000,-170.28421828,0.00027558,2]
[426092623,1782144648000,-305.23292936,0.00027575,2]
[426092622,1782144648000,-612.50274464,0.00027575,2]
[426092620,1782144648000,-204.51063373,0.00027575,2]
[426092619,1782144648000,-482.7501994,0.00027575,2]
[426092618,1782144648000,-222.6874624,0.00027575,2]
[426092626,1782144648000,-468.87641678,0.00027575,2]
[426092627,1782144648000,-472.46829056,0.00027575,2]
[426092624,1782144648000,-446.98210209,0.00027575,2]
[426092625,1782144648000,-518.4700284,0.00027575,2]
[426092629,1782144648000,-369.05,0.0002758,7]
[426092631,1782144648000,-785.0,0.00027586,2]
[426092630,1782144648000,-358.85,0.0002758,7]
[426092632,1782144648000,-655.65251677,0.0002759,2]
[426092634,1782144648000,-326.94484481,0.0002759,2]
[426092635,1782144648000,-478.6431904,0.0002759,2]
[426092633,1782144648000,-474.0660855,0.0002759,2]
[426092637,1782144648000,-552.95079505,0.00027606,2]
[426092638,1782144648000,-229.43913755,0.00027606,2]
[426092636,1782144648000,-346.13643708,0.0002759,2]
[426092639,1782144648000,-596.04298335,0.00027606,2]
[426092595,1782144648000,-1378.19,0.00027572,7]
[426092621,1782144648000,-450.3093209,0.00027575,2]
[426092617,1782144648000,-552.79404293,0.00027575,2]
[426092628,1782144648000,-201.10278948,0.00027575,2]
[426092615,1782144648000,-164.150029,0.00027575,2]
[426092611,1782144648000,-239.06047859,0.00027575,2]
[426092605,1782144648000,-299.02349442,0.00027575,2]
[426092596,1782144648000,-1378.64,0.00027572,7]
[426092606,1782144648000,-409.61401334,0.00027575,2]
[426092597,1782144648000,-477.7029865,0.00027573,2]
[426092600,1782144648000,-474.37591394,0.00027575,2]
[426092640,1782144648000,-546.28453689,0.00027606,2]
[426092598,1782144648000,-451.29655966,0.00027573,2]
[426092601,1782144648000,-494.67219121,0.00027575,2]
[426092604,1782144648000,-452.11741345,0.00027575,2]
[426092603,1782144648000,-292.4722585,0.00027575,2]
[426092592,1782144648000,-165.39558021,0.00027558,2]
[426092602,1782144648000,-481.6069269,0.00027575,2]
[426092607,1782144648000,-584.9976941,0.00027575,2]
[426092609,1782144648000,-457.93694086,0.00027575,2]
[426092616,1782144648000,-240.3258027,0.00027575,2]
[426092612,1782144648000,-391.36722361,0.00027575,2]
[426092610,1782144648000,-459.87665222,0.00027575,2]
[426092613,1782144648000,-309.4041896,0.00027575,2]
[426092614,1782144648000,-212.84145914,0.00027575,2]
[426092608,1782144648000,-343.32851635,0.00027575,2]
[426092599,1782144648000,-546.33168933,0.00027573,2]
[426092662,1782144649000,-150.0,0.0002769,2]
[426092678,1782144649000,-369.05,0.00027763,7]
[426092674,1782144649000,-1378.64,0.00027732,2]
[426092673,1782144649000,-1378.19,0.00027732,2]
[426092668,1782144649000,-358.85,0.00027702,30]
[426092671,1782144649000,-567.77,0.00027711,7]
[426092670,1782144649000,-891.03,0.00027711,7]
[426092663,1782144649000,-150.0,0.0002769,2]
[426092676,1782144649000,-358.85,0.00027733,2]
[426092672,1782144649000,-891.01,0.00027711,7]
[426092675,1782144649000,-369.05,0.00027733,2]
[426092685,1782144649000,-251.11897888,0.00027769,2]
[426092680,1782144649000,-621.78829552,0.00027767,2]
[426092679,1782144649000,-358.85,0.00027763,7]
[426092681,1782144649000,-695.39793187,0.00027767,2]
[426092684,1782144649000,-391.81075028,0.00027769,2]
[426092683,1782144649000,-270.0455652,0.00027769,2]
[426092682,1782144649000,-815.44410182,0.00027769,2]
[426092687,1782144649000,-14701.54489088,0.00027778,2]
[426092686,1782144649000,-151.0,0.00027769,2]
[426092689,1782144649000,-369.05,0.00027794,30]
[426092677,1782144649000,-477.170604,0.00027754,2]
[426092666,1782144649000,-700.35,0.00027701,2]
[426092641,1782144649000,-170.5130456,0.00027606,2]
[426092664,1782144649000,-476.52559841,0.00027694,2]
[426092691,1782144649000,-969.24,0.000278,7]
[426092648,1782144649000,-211.52135977,0.00027606,2]
[426092645,1782144649000,-513.62303466,0.00027606,2]
[426092646,1782144649000,-203.00844963,0.00027606,2]
[426092647,1782144649000,-580.29824051,0.00027606,2]
[426092643,1782144649000,-211.33665678,0.00027606,2]
[426092644,1782144649000,-161.15067988,0.00027606,2]
[426092659,1782144649000,-369.05,0.00027672,7]
[426092649,1782144649000,-212.41882599,0.00027606,2]
[426092658,1782144649000,-1715.21,0.0002765,2]
[426092665,1782144649000,-190.61023936,0.00027694,2]
[426092651,1782144649000,-486.55794222,0.00027606,2]
[426092654,1782144649000,-285.91535904,0.0002762,30]
[426092650,1782144649000,-611.03283757,0.00027606,2]
[426092656,1782144649000,-369.05,0.00027641,2]
[426092655,1782144649000,-493.43181461,0.00027622,2]
[426092653,1782144649000,-358.85,0.00027611,30]
[426092657,1782144649000,-358.85,0.00027641,2]
[426092660,1782144649000,-358.85,0.00027672,7]
[426092661,1782144649000,-292.09502455,0.00027672,2]
[426092669,1782144649000,-567.59,0.00027711,7]
[426092667,1782144649000,-369.05,0.00027702,30]
[426092652,1782144649000,-369.05,0.00027611,30]
[426092688,1782144649000,-4046.0,0.0002778,5]
[426092642,1782144649000,-234.31804654,0.00027606,2]
[426092692,1782144649000,-364.68,0.000278,7]
[426092722,1782144649000,-160.0,0.00028,30]
[426092723,1782144649000,-160.0,0.00028,10]
[426092717,1782144649000,-358.85,0.00027977,30]
[426092716,1782144649000,-369.05,0.00027977,30]
[426092718,1782144649000,-800.0,0.00028,2]
[426092726,1782144649000,-39765.3,0.00028,2]
[426092724,1782144649000,-216.35787048,0.00028,30]
[426092727,1782144649000,-119657.56,0.00028,2]
[426092725,1782144649000,-203.72065036,0.00028,7]
[426092728,1782144649000,-5000000.0,0.00028,30]
[426092714,1782144649000,-369.05,0.00027946,7]
[426092732,1782144649000,-567.59,0.00028033,30]
[426092729,1782144649000,-700.35,0.00028006,2]
[426092730,1782144649000,-369.05,0.00028007,2]
[426092733,1782144649000,-891.03,0.00028033,30]
[426092739,1782144649000,-1378.19,0.00028053,7]
[426092734,1782144649000,-567.77,0.00028033,30]
[426092738,1782144649000,-501.0,0.00028041,9]
[426092735,1782144649000,-891.01,0.00028033,30]
[426092736,1782144649000,-369.05,0.00028038,7]
[426092737,1782144649000,-358.85,0.00028038,7]
[426092690,1782144649000,-358.85,0.00027794,30]
[426092731,1782144649000,-358.85,0.00028007,2]
[426092721,1782144649000,-600.0,0.00028,2]
[426092740,1782144649000,-1378.64,0.00028053,7]
[426092715,1782144649000,-358.85,0.00027946,7]
[426092719,1782144649000,-14701.54489088,0.00028,2]
[426092693,1782144649000,-291.38,0.00027808,7]
[426092695,1782144649000,-358.85,0.00027824,2]
[426092697,1782144649000,-369.05,0.00027855,7]
[426092699,1782144649000,-567.59,0.00027872,2]
[426092700,1782144649000,-891.03,0.00027872,2]
[426092696,1782144649000,-221.07,0.00027839,2]
[426092698,1782144649000,-358.85,0.00027855,7]
[426092701,1782144649000,-567.77,0.00027872,2]
[426092702,1782144649000,-891.01,0.00027872,2]
[426092703,1782144649000,-369.05,0.00027885,30]
[426092694,1782144649000,-369.05,0.00027824,2]
[426092709,1782144649000,-369.05,0.00027916,2]
[426092707,1782144649000,-39885.85,0.000279,2]
[426092713,1782144649000,-3000.0,0.00027945,2]
[426092711,1782144649000,-3176.0,0.00027918,2]
[426092705,1782144649000,-1378.19,0.00027892,30]
[426092712,1782144649000,-785.0,0.00027918,2]
[426092710,1782144649000,-358.85,0.00027916,2]
[426092708,1782144649000,-1715.21,0.00027903,2]
[426092706,1782144649000,-1378.64,0.00027892,30]
[426092704,1782144649000,-358.85,0.00027885,30]
[426092720,1782144649000,-110000.0,0.00028,2]
[426092765,1782144650000,-369.23,0.0002813,7]
[426092773,1782144650000,-383.73358454,0.00028139,2]
[426092767,1782144650000,-636.93731534,0.00028139,2]
[426092769,1782144650000,-160.12493702,0.00028139,2]
[426092774,1782144650000,-728.44225244,0.00028139,2]
[426092770,1782144650000,-166.24117655,0.00028139,2]
[426092766,1782144650000,-358.85,0.0002813,7]
[426092768,1782144650000,-188.73261753,0.00028139,2]
[426092780,1782144650000,-678.17612018,0.00028141,2]
[426092772,1782144650000,-676.9448395,0.00028139,2]
[426092776,1782144650000,-659.56292161,0.00028141,2]
[426092775,1782144650000,-632.50121859,0.00028141,2]
[426092777,1782144650000,-159.67444372,0.00028141,2]
[426092779,1782144650000,-162.93427311,0.00028141,2]
[426092778,1782144650000,-584.94451699,0.00028141,2]
[426092783,1782144650000,-779.99692547,0.00028141,2]
[426092782,1782144650000,-614.42102002,0.00028141,2]
[426092763,1782144650000,-340.56843656,0.00028124,2]
[426092771,1782144650000,-377.84714451,0.00028139,2]
[426092760,1782144650000,-330.79116042,0.00028124,2]
[426092751,1782144650000,-600.55377134,0.00028124,2]
[426092762,1782144650000,-633.83434604,0.00028124,2]
[426092781,1782144650000,-598.04698884,0.00028141,2]
[426092741,1782144650000,-237.49223727,0.00028068,30]
[426092743,1782144650000,-358.85,0.00028068,30]
[426092745,1782144650000,-369.05,0.00028099,2]
[426092744,1782144650000,-1525.49,0.00028074,7]
[426092742,1782144650000,-369.05,0.00028068,30]
[426092746,1782144650000,-358.85,0.00028099,2]
[426092748,1782144650000,-534.3592339,0.00028124,2]
[426092753,1782144650000,-630.98989214,0.00028124,2]
[426092759,1782144650000,-558.31262175,0.00028124,2]
[426092747,1782144650000,-338.667488,0.000281,2]
[426092750,1782144650000,-680.01155672,0.00028124,2]
[426092752,1782144650000,-664.80716865,0.00028124,2]
[426092755,1782144650000,-674.15915617,0.00028124,2]
[426092756,1782144650000,-548.22851286,0.00028124,2]
[426092758,1782144650000,-741.63501741,0.00028124,2]
[426092754,1782144650000,-702.23135297,0.00028124,2]
[426092757,1782144650000,-422.78001498,0.00028124,2]
[426092761,1782144650000,-790.76386184,0.00028124,2]
[426092764,1782144650000,-418.7907892,0.00028124,2]
[426092749,1782144650000,-725.48734814,0.00028124,2]
[426092784,1782144650000,-610.58258781,0.00028141,2]
[426092794,1782144650000,-445.37492481,0.00028141,2]
[426092788,1782144650000,-587.05083541,0.00028141,2]
[426092812,1782144650000,-638.19092054,0.00028156,2]
[426092813,1782144650000,-173.06821854,0.00028156,2]
[426092814,1782144650000,-737.26772674,0.00028173,2]
[426092819,1782144650000,-448.54719082,0.00028173,2]
[426092817,1782144650000,-163.71747587,0.00028173,2]
[426092818,1782144650000,-410.65729424,0.00028173,2]
[426092815,1782144650000,-155.90730783,0.00028173,2]
[426092816,1782144650000,-458.87827511,0.00028173,2]
[426092820,1782144650000,-794.7239778,0.00028173,2]
[426092822,1782144650000,-385.95243938,0.00028173,2]
[426092823,1782144650000,-422.67331356,0.00028173,2]
[426092821,1782144650000,-341.0260912,0.00028173,2]
[426092829,1782144650000,-423.04271954,0.00028173,2]
[426092830,1782144650000,-150.84822407,0.00028173,2]
[426092824,1782144650000,-322.30135977,0.00028173,2]
[426092826,1782144650000,-684.83071288,0.00028173,2]
[426092827,1782144650000,-406.01689926,0.00028173,2]
[426092825,1782144650000,-228.86671973,0.00028173,2]
[426092786,1782144650000,-689.81497833,0.00028141,2]
[426092809,1782144650000,-642.1425692,0.00028156,2]
[426092810,1782144650000,-711.09912825,0.00028156,2]
[426092828,1782144650000,-773.73098735,0.00028173,2]
[426092805,1782144650000,-708.70243584,0.00028141,2]
[426092811,1782144650000,-490.41726721,0.00028156,2]
[426092795,1782144650000,-643.66693253,0.00028141,2]
[426092787,1782144650000,-478.12095717,0.00028141,2]
[426092789,1782144650000,-464.1062844,0.00028141,2]
[426092790,1782144650000,-425.68291828,0.00028141,2]
[426092791,1782144650000,-328.30005801,0.00028141,2]
[426092792,1782144650000,-480.65160539,0.00028141,2]
[426092793,1782144650000,-737.05872391,0.00028141,2]
[426092796,1782144650000,-302.85250253,0.00028141,2]
[426092797,1782144650000,-409.02126746,0.00028141,2]
[426092785,1782144650000,-514.99277453,0.00028141,2]
[426092799,1782144650000,-816.67032619,0.00028141,2]
[426092800,1782144650000,-457.84939404,0.00028141,2]
[426092803,1782144650000,-691.2933712,0.00028141,2]
[426092802,1782144650000,-670.47315313,0.00028141,2]
[426092801,1782144650000,-153.07171842,0.00028141,2]
[426092804,1782144650000,-625.1685557,0.00028141,2]
[426092806,1782144650000,-1715.21,0.00028156,2]
[426092807,1782144650000,-162.69071168,0.00028156,2]
[426092808,1782144650000,-874.2033557,0.00028156,2]
[426092798,1782144650000,-675.46398136,0.00028141,2]
[426092856,1782144651000,-815.44410182,0.00028317,2]
[426092857,1782144651000,-280.03725111,0.00028317,2]
[426092854,1782144651000,-158.32815818,0.000283,2]
[426092855,1782144651000,-700.35,0.0002831,2]
[426092861,1782144651000,-891.23,0.00028355,2]
[426092860,1782144651000,-151.0,0.00028317,2]
[426092858,1782144651000,-391.81075028,0.00028317,2]
[426092859,1782144651000,-260.4103811,0.00028317,2]
[426092864,1782144651000,-567.77,0.00028355,2]
[426092865,1782144651000,-891.01,0.00028355,2]
[426092867,1782144651000,-1378.19,0.00028373,30]
[426092868,1782144651000,-1378.64,0.00028373,30]
[426092863,1782144651000,-891.03,0.00028355,2]
[426092866,1782144651000,-1378.15,0.00028373,30]
[426092871,1782144651000,-424.51413,0.00028421,7]
[426092870,1782144651000,-477.170604,0.00028421,7]
[426092869,1782144651000,-1715.21,0.00028409,2]
[426092853,1782144651000,-395.82039545,0.000283,2]
[426092862,1782144651000,-567.59,0.00028355,2]
[426092851,1782144651000,-200.0,0.00028276,2]
[426092841,1782144651000,-891.03,0.00028194,7]
[426092852,1782144651000,-39885.85,0.000283,2]
[426092874,1782144651000,-202.4,0.00028493,2]
[426092835,1782144651000,-729.83691332,0.00028173,2]
[426092831,1782144651000,-424.83765198,0.00028173,2]
[426092834,1782144651000,-468.63609308,0.00028173,2]
[426092833,1782144651000,-200.31206096,0.00028173,2]
[426092836,1782144651000,-190.86020306,0.00028173,2]
[426092837,1782144651000,-155.22938009,0.00028173,2]
[426092832,1782144651000,-814.71045009,0.00028173,2]
[426092838,1782144651000,-160.0,0.00028173,2]
[426092842,1782144651000,-567.77,0.00028194,7]
[426092839,1782144651000,-657.90908615,0.00028189,2]
[426092843,1782144651000,-891.01,0.00028194,7]
[426092840,1782144651000,-567.59,0.00028194,7]
[426092844,1782144651000,-969.24,0.000282,7]
[426092845,1782144651000,-364.68,0.000282,7]
[426092846,1782144651000,-1378.19,0.00028213,2]
[426092847,1782144651000,-1378.64,0.00028213,2]
[426092849,1782144651000,-785.0,0.00028251,2]
[426092850,1782144651000,-719.5,0.00028267,2]
[426092848,1782144651000,-152.6191,0.00028219,2]
[426092872,1782144651000,-219.0,0.00028474,2]
[426092878,1782144651000,-200.0,0.00028503,7]
[426092879,1782144651000,-200.0,0.00028503,7]
[426092898,1782144651000,-350.0,0.00028637,4]
[426092900,1782144651000,-170.99159825,0.00028658,2]
[426092902,1782144651000,-1715.21,0.00028662,2]
[426092901,1782144651000,-501.0,0.0002866,10]
[426092903,1782144651000,-150.0,0.00028684,2]
[426092904,1782144651000,-150.0,0.00028684,2]
[426092906,1782144651000,-150.0,0.00028684,2]
[426092907,1782144651000,-3561.0,0.00028684,2]
[426092910,1782144651000,-927.04377177,0.0002869,2]
[426092905,1782144651000,-150.0,0.00028684,2]
[426092908,1782144651000,-831.00896081,0.0002869,2]
[426092909,1782144651000,-877.78919121,0.0002869,2]
[426092911,1782144651000,-988.4548273,0.0002869,2]
[426092914,1782144651000,-558.41,0.000287,7]
[426092915,1782144651000,-796.17164417,0.00028705,2]
[426092917,1782144651000,-790.62652323,0.00028707,2]
[426092918,1782144651000,-804.58366566,0.00028707,2]
[426092912,1782144651000,-792.29293255,0.0002869,2]
[426092873,1782144651000,-347.0,0.00028474,2]
[426092899,1782144651000,-341.9831965,0.00028658,2]
[426092897,1782144651000,-700.35,0.00028614,2]
[426092913,1782144651000,-39885.85,0.000287,2]
[426092896,1782144651000,-400.5977346,0.000286,2]
[426092876,1782144651000,-50000.0,0.000285,2]
[426092880,1782144651000,-200.0,0.00028503,7]
[426092875,1782144651000,-800.0,0.000285,2]
[426092877,1782144651000,-350.0,0.00028502,2]
[426092881,1782144651000,-200.0,0.00028503,7]
[426092894,1782144651000,-969.24,0.000286,7]
[426092885,1782144651000,-412.0,0.00028567,2]
[426092884,1782144651000,-567.77,0.00028516,30]
[426092883,1782144651000,-567.59,0.00028516,30]
[426092916,1782144651000,-833.55807427,0.00028705,2]
[426092882,1782144651000,-567.57,0.00028516,30]
[426092888,1782144651000,-350.0,0.00028598,11]
[426092886,1782144651000,-170.0,0.00028574,3]
[426092889,1782144651000,-39765.3,0.000286,2]
[426092892,1782144651000,-119657.56,0.000286,2]
[426092890,1782144651000,-39765.3,0.000286,2]
[426092891,1782144651000,-119657.56,0.000286,2]
[426092893,1782144651000,-39885.85,0.000286,2]
[426092887,1782144651000,-785.0,0.00028583,2]
[426092895,1782144651000,-364.68,0.000286,7]